bitfinex/quotes_BTCUSD_20250131
["timestamp","ask_amount","ask_price","bid_price","bid_amount"]
[1738341796032,0.00329515,105000.0,104990.0,0.20623549]
[1738341796240,0.00329515,105000.0,104990.0,0.20728313]
[1738341797175,0.00318199,105000.0,104990.0,0.20728313]
[1738341799090,0.00318199,105000.0,104990.0,0.04941613]
[1738341799091,0.14603899,105000.0,104990.0,0.04941613]
[1738341799296,0.142857,105000.0,104990.0,0.19176098]
[1738341799496,0.69812216,105010.0,104990.0,0.38225298]
[1738341800163,0.43055716,105010.0,104990.0,0.57273798]
[1738341800865,0.62102616,105010.0,104990.0,0.38024598]
[1738341801287,0.62102616,105010.0,104990.0,0.57273998]
[1738341801726,0.16047935,105000.0,104990.0,0.19176098]
[1738341802126,0.01762235,105000.0,104990.0,0.19176098]
[1738341802506,0.01762235,105000.0,104990.0,0.19076098]
[1738341802891,0.01762235,105000.0,104990.0,0.19176098]
[1738341803099,0.01762235,105000.0,104990.0,0.19076098]
[1738341803319,0.63977737,105010.0,104990.0,0.38124998]
[1738341803747,0.83024537,105010.0,104990.0,0.38124998]
[1738341804313,0.5468,105000.0,104990.0,0.19176098]
[1738341804514,0.5468,105000.0,104990.0,0.19201697]
[1738341805884,0.5468,105000.0,104990.0,0.19101697]
[1738341806251,0.5468,105000.0,104990.0,0.19201697]
[1738341806710,0.5468,105000.0,104990.0,0.19101697]
[1738341807627,0.689657,105000.0,104990.0,0.19101697]
[1738341807836,0.689657,105000.0,104990.0,0.18906461]
[1738341809301,0.689657,105000.0,104990.0,0.19106461]
[1738341809504,0.5468,105000.0,104990.0,0.19006461]
[1738341809740,0.5468,105000.0,104990.0,0.33751697]
[1738341809950,0.0001219,105010.0,105000.0,0.157857]
[1738341810161,0.0001219,105010.0,105000.0,0.142857]
[1738341810374,0.0001219,105010.0,105000.0,0.157857]
[1738341810576,0.0001219,105010.0,105000.0,0.142857]
[1738341810789,0.0001219,105010.0,105000.0,0.157857]
[1738341811231,0.5479219,105010.0,105000.0,0.15880924]
[1738341811471,0.5479219,105010.0,105000.0,0.157857]
[1738341812572,0.5489219,105010.0,105000.0,0.157857]
[1738341814115,0.5489219,105010.0,105000.0,0.142857]
[1738341814340,0.5489219,105010.0,105000.0,0.157857]
[1738341814989,0.5489219,105010.0,105000.0,0.180857]
[1738341816442,0.0021219,105010.0,105000.0,0.180857]
[1738341816656,0.09936506,105010.0,105000.0,0.142857]
[1738341816863,0.24221306,105010.0,105000.0,0.142857]
[1738341820011,0.0021219,105010.0,105000.0,0.18180936]
[1738341820214,0.0021219,105010.0,105000.0,0.29361192]
[1738341820387,0.0021219,105010.0,105000.0,0.29265973]
[1738341823242,0.0021219,105010.0,105000.0,0.30065621]
[1738341824518,0.5489219,105010.0,105000.0,0.30065621]
[1738341825319,0.5479219,105010.0,105000.0,0.30065621]
[1738341825527,0.5469219,105010.0,105000.0,0.30065621]
[1738341825698,0.5469219,105010.0,105000.0,0.21955621]
[1738341826050,0.5469219,105010.0,105000.0,0.22055621]
[1738341828127,0.0001219,105010.0,105000.0,0.20555621]
[1738341828268,0.0001219,105010.0,105000.0,0.17585348]
[1738341828878,0.0001219,105010.0,105000.0,0.17680568]
[1738341829079,0.0001219,105010.0,105000.0,0.15285348]
[1738341829484,0.0001219,105010.0,105000.0,0.16785348]
[1738341829684,0.0001219,105010.0,105000.0,0.30285348]
[1738341829906,0.0001219,105010.0,105000.0,0.31785348]
[1738341830141,0.0001219,105010.0,105000.0,0.34085348]
[1738341830838,0.0001219,105010.0,105000.0,0.32585348]
[1738341831259,0.0001219,105010.0,105000.0,0.34085348]
[1738341832676,0.0001219,105010.0,105000.0,0.32585348]
[1738341832859,0.0001219,105010.0,105000.0,0.34085348]
[1738341833058,0.0001219,105010.0,105000.0,0.32585348]
[1738341833258,0.0829219,105010.0,105000.0,0.19085348]
[1738341834124,0.0829219,105010.0,105000.0,0.18985348]
[1738341834888,0.0011219,105010.0,105000.0,0.18985348]
[1738341835661,0.0011219,105010.0,105000.0,0.18885348]
[1738341836069,0.0021219,105010.0,105000.0,0.18885348]
[1738341836809,0.0021219,105010.0,105000.0,0.1898058]
[1738341837410,0.0011219,105010.0,105000.0,0.1898058]
[1738341837865,0.0011219,105010.0,105000.0,0.37047647]
[1738341838079,0.0011219,105010.0,105000.0,0.36952415]
[1738341838730,0.0011219,105010.0,105000.0,0.59116731]
[1738341838936,0.0001219,105010.0,105000.0,0.59116731]
[1738341839982,0.0001219,105010.0,105000.0,0.59016731]
[1738341840398,0.0001219,105010.0,105000.0,0.59216731]
[1738341840523,0.0001219,105010.0,105000.0,0.49492415]
[1738341841490,0.0001219,105010.0,105000.0,0.49592415]
[1738341841882,0.0001219,105010.0,105000.0,0.35652415]
[1738341842082,0.0001219,105010.0,105000.0,0.37152415]
[1738341842651,0.0001219,105010.0,105000.0,0.35652415]
[1738341843298,0.0001219,105010.0,105000.0,0.37152415]
[1738341843714,0.0001219,105010.0,105000.0,0.35552415]
[1738341843921,0.0001219,105010.0,105000.0,0.37052415]
[1738341844336,0.0001219,105010.0,105000.0,0.37452415]
[1738341845531,0.0001219,105010.0,105000.0,0.22252415]
[1738341845733,0.0001219,105010.0,105000.0,0.22452415]
[1738341845899,0.0001219,105010.0,105000.0,0.37452415]
[1738341846324,0.0001219,105010.0,105000.0,0.37252415]
[1738341846596,0.0001219,105010.0,105000.0,0.37352415]
[1738341847390,0.0001219,105010.0,105000.0,0.44972415]
[1738341847843,0.0001219,105010.0,105000.0,0.36952415]
[1738341848273,0.0001219,105010.0,105000.0,0.37052415]
[1738341849434,0.14376648,105010.0,105000.0,0.15285348]
[1738341849749,0.22676506,105010.0,105000.0,0.16785348]
[1738341849954,0.36960806,105010.0,105000.0,0.16785348]
[1738341850156,0.22676506,105010.0,105000.0,0.16785348]
[1738341850378,0.36960806,105010.0,105000.0,0.16685348]
[1738341850777,0.36960806,105010.0,105000.0,0.16585348]
[1738341850958,0.22676506,105010.0,105000.0,0.16585348]
[1738341851162,0.22776506,105010.0,105000.0,0.16585348]
[1738341851821,0.0831219,105010.0,105000.0,0.18885348]
[1738341852233,0.0021219,105010.0,105000.0,0.18885348]
[1738341853461,0.0011219,105010.0,105000.0,0.18885348]
[1738341854259,0.0011219,105010.0,105000.0,0.21956271]
[1738341854638,0.0001219,105010.0,105000.0,0.21956271]
[1738341854841,0.0001219,105010.0,105000.0,0.22056271]
[1738341855717,0.0001219,105010.0,105000.0,0.19085348]
[1738341856051,0.00092348,105010.0,105000.0,0.19085348]
[1738341856492,0.0001219,105010.0,105000.0,0.19085348]
[1738341856702,0.0001219,105010.0,105000.0,0.18985348]
[1738341857065,0.0001219,105010.0,105000.0,0.19085348]
[1738341857468,0.0001219,105010.0,105000.0,0.18885348]
[1738341858013,0.0021219,105010.0,105000.0,0.18885348]
[1738341859110,0.24220806,105010.0,105000.0,0.15085348]
[1738341859313,0.09936506,105010.0,105000.0,0.15085348]
[1738341859517,0.24220806,105010.0,105000.0,0.16585348]
[1738341860119,0.24220806,105010.0,105000.0,0.15085348]
[1738341860565,0.24220806,105010.0,105000.0,0.16585348]
[1738341860763,0.24220806,105010.0,105000.0,0.15085348]
[1738341861177,0.36490806,105010.0,105000.0,0.00799648]
[1738341861433,0.36490806,105010.0,105000.0,0.15085348]
[1738341861603,0.36490806,105010.0,105000.0,0.00799648]
[1738341862044,0.22206506,105010.0,105000.0,0.15085348]
[1738341862247,0.36490806,105010.0,105000.0,0.15085348]
[1738341863559,0.38397746,105010.0,105000.0,0.15085348]
[1738341864791,0.24113446,105010.0,105000.0,0.15085348]
[1738341865016,0.38397746,105010.0,105000.0,0.15085348]
[1738341868128,0.38397746,105010.0,105000.0,0.00799648]
[1738341879388,0.09936506,105010.0,105000.0,0.18885348]
[1738341879597,0.0021219,105010.0,105000.0,0.18885348]
[1738341879805,0.24300964,105010.0,105000.0,0.00799648]
[1738341880004,0.24220806,105010.0,105000.0,0.15085348]
[1738341880194,0.28920806,105010.0,105000.0,0.15085348]
[1738341881125,0.14636506,105010.0,105000.0,0.15085348]
[1738341887737,0.28920806,105010.0,105000.0,0.15085348]
[1738341889546,0.30785692,105010.0,105000.0,0.15085348]
[1738341890347,0.30785692,105010.0,105000.0,0.00799648]
[1738341890563,0.38445692,105010.0,105000.0,0.00799648]
[1738341891099,0.38445692,105010.0,105000.0,0.15085348]
[1738341891525,0.36580806,105010.0,105000.0,0.15085348]
[1738341891740,0.22296506,105010.0,105000.0,0.15085348]
[1738341892327,0.1257219,105010.0,105000.0,0.17385348]
[1738341892533,0.0021219,105010.0,105000.0,0.17385348]
[1738341893135,0.0021219,105010.0,105000.0,0.18885348]
[1738341894081,0.0021219,105010.0,105000.0,0.31675348]
[1738341894219,0.0021219,105010.0,105000.0,0.34645126]
[1738341894858,0.0021219,105010.0,105000.0,0.21855126]
[1738341896059,0.5489219,105010.0,105000.0,0.21855126]
[1738341896492,0.5489219,105010.0,105000.0,0.18885348]
[1738341896927,0.5489219,105010.0,105000.0,0.17385348]
[1738341897121,0.0021219,105010.0,105000.0,0.17385348]
[1738341897327,0.0021219,105010.0,105000.0,0.18885348]
[1738341897659,0.0021219,105010.0,105000.0,0.17385348]
[1738341898063,0.0021219,105010.0,105000.0,0.18885348]
[1738341898254,0.0021219,105010.0,105000.0,0.17385348]
[1738341899857,0.0021219,105010.0,105000.0,0.18885348]
[1738341901681,0.0021219,105010.0,105000.0,0.17385348]
[1738341901884,0.0021219,105010.0,105000.0,0.18885348]
[1738341902474,0.0021219,105010.0,105000.0,0.17385348]
[1738341902680,0.0021219,105010.0,105000.0,0.18885348]
[1738341902886,0.1449649,105010.0,105000.0,0.18885348]
[1738341903098,0.0021219,105010.0,105000.0,0.18885348]
[1738341906486,0.0021219,105010.0,105000.0,0.17385348]
[1738341910347,0.0021219,105010.0,105000.0,0.25605348]
[1738341910585,0.0021219,105010.0,105000.0,0.28472525]
[1738341910987,0.0021219,105010.0,105000.0,0.28366476]
[1738341911204,0.0021219,105010.0,105000.0,0.25396353]
[1738341911611,0.0021219,105010.0,105000.0,0.17176353]
[1738341911831,0.0021219,105010.0,105000.0,0.20146936]
[1738341913206,0.0021219,105010.0,105000.0,0.36646936]
[1738341913418,0.0021219,105010.0,105000.0,0.37169728]
[1738341917046,0.0021219,105010.0,105000.0,0.59204044]
[1738341918010,0.0021219,105010.0,105000.0,0.49479728]
[1738341918235,0.0021219,105010.0,105000.0,0.39489728]
[1738341918843,0.0021219,105010.0,105000.0,0.41789728]
[1738341920444,0.5489219,105010.0,105000.0,0.41789728]
[1738341921797,0.5489219,105010.0,105000.0,0.41815327]
[1738341921991,0.5489219,105010.0,105000.0,0.39515327]
[1738341922247,0.5489219,105010.0,105000.0,0.41815327]
[1738341924082,0.5489219,105010.0,105000.0,0.22195327]
[1738341926123,0.0021219,105010.0,105000.0,0.22195327]
[1738341927703,0.0021219,105010.0,105000.0,0.26865327]
[1738341927914,0.0021219,105010.0,105000.0,0.49685327]
[1738341928476,0.0011219,105010.0,105000.0,0.49685327]
[1738341928688,0.0001219,105010.0,105000.0,0.49685327]
[1738341928903,0.0001219,105010.0,105000.0,0.49885327]
[1738341929581,0.0001219,105010.0,105000.0,0.59609643]
[1738341931440,0.0001219,105010.0,105000.0,0.59609643]
[1738341932692,0.0001219,105010.0,105000.0,0.60609643]
[1738341933325,0.0001219,105010.0,105000.0,0.59609643]
[1738341946074,0.0001219,105010.0,105000.0,0.60609643]
[1738341947581,0.0001219,105010.0,105000.0,0.59609643]
[1738341947986,0.0001219,105010.0,105000.0,0.47119643]
[1738341948732,0.0001219,105010.0,105000.0,0.45619643]
[1738341948938,0.0001219,105010.0,105000.0,0.47119643]
[1738341952113,0.0001219,105010.0,105000.0,0.51869643]
[1738341952960,0.0001219,105010.0,105000.0,0.50369643]
[1738341953156,0.0001219,105010.0,105000.0,0.51869643]
[1738341955163,0.0001219,105010.0,105000.0,0.60859643]
[1738341957720,0.0001219,105010.0,105000.0,0.59859643]
[1738341958670,0.0001219,105010.0,105000.0,0.60859643]
[1738341958848,0.0001219,105010.0,105000.0,0.59859643]
[1738341959275,0.0001219,105010.0,105000.0,0.60859643]
[1738341960203,0.0001219,105010.0,105000.0,0.59859643]
[1738341960421,0.0001219,105010.0,105000.0,0.60859643]
[1738341960600,0.0001219,105010.0,105000.0,0.53323908]
[1738341960803,0.0001219,105010.0,105000.0,0.51823908]
[1738341961014,0.0800219,105010.0,105000.0,0.14313892]
[1738341961219,0.33526709,105010.0,105000.0,0.12813892]
[1738341961466,0.33526709,105010.0,105000.0,0.09843309]
[1738341961467,0.43251025,105010.0,105000.0,0.09843309]
[1738341961803,0.1252219,105010.0,105000.0,0.26429009]
[1738341961999,0.1252219,105010.0,105000.0,0.24129009]
[1738341962406,0.1252219,105010.0,105000.0,0.29299945]
[1738341962621,0.1262219,105010.0,105000.0,0.26899945]
[1738341962828,0.1262219,105010.0,105000.0,0.26229009]
[1738341963116,0.1262219,105010.0,105000.0,0.26329009]
[1738341963497,0.1262219,105010.0,105000.0,0.26229009]
[1738341963701,0.1272219,105010.0,105000.0,0.29198723]
[1738341964352,0.1272219,105010.0,105000.0,0.20694458]
[1738341965313,0.1272219,105010.0,105000.0,0.17724744]
[1738341965728,0.2700649,105010.0,105000.0,0.03439044]
[1738341965981,0.2700649,105010.0,105000.0,0.17724744]
[1738341967202,0.1272219,105010.0,105000.0,0.17724744]
[1738341969034,0.2700649,105010.0,105000.0,0.17724744]
[1738341969218,0.36730806,105010.0,105000.0,0.03439044]
[1738341972135,0.36730806,105010.0,105000.0,0.17724744]
[1738341975531,0.36730806,105010.0,105000.0,0.03439044]
[1738341975734,0.36730806,105010.0,105000.0,0.17724744]
[1738341976358,0.36730806,105010.0,105000.0,0.03439044]
[1738341977588,0.36730806,105010.0,105000.0,0.17724744]
[1738341977966,0.36730806,105010.0,105000.0,0.03439044]
[1738341978353,0.36730806,105010.0,105000.0,0.17724744]
[1738341978570,0.36730806,105010.0,105000.0,0.03439044]
[1738341981157,0.22446506,105010.0,105000.0,0.17724744]
[1738341981514,0.36730806,105010.0,105000.0,0.03439044]
[1738341981699,0.36730806,105010.0,105000.0,0.17724744]
[1738341982301,0.22446506,105010.0,105000.0,0.17724744]
[1738341982730,0.36730806,105010.0,105000.0,0.17724744]
[1738341984303,0.36730806,105010.0,105000.0,0.15424744]
[1738341987893,0.36730806,105010.0,105000.0,0.01139044]
[1738341988101,0.36730806,105010.0,105000.0,0.15424744]
[1738341989133,0.22446506,105010.0,105000.0,0.15424744]
[1738341989339,0.36730806,105010.0,105000.0,0.15424744]
[1738341990352,0.1272219,105010.0,105000.0,0.17724744]
[1738341990554,0.0021219,105010.0,105000.0,0.17724744]
[1738341992356,0.0021219,105010.0,105000.0,0.19224744]
[1738341993345,0.0021219,105010.0,105000.0,0.22195357]
[1738341998991,0.0021219,105010.0,105000.0,0.37195357]
[1738342000635,0.5489219,105010.0,105000.0,0.37195357]
[1738342000871,0.0021219,105010.0,105000.0,0.46919673]
[1738342001138,0.0021219,105010.0,105000.0,0.59999673]
[1738342001842,0.0011219,105010.0,105000.0,0.59999673]
[1738342002049,0.0001219,105010.0,105000.0,0.59999673]
[1738342002187,0.0001219,105010.0,105000.0,0.61499673]
[1738342002601,0.0001219,105010.0,105000.0,0.60099673]
[1738342002872,0.0001219,105010.0,105000.0,0.59999673]
[1738342003119,0.0001219,105010.0,105000.0,0.47219673]
[1738342003556,0.0001219,105010.0,105000.0,0.47623313]
[1738342005170,0.0001219,105010.0,105000.0,0.47323313]
[1738342005573,0.0001219,105010.0,105000.0,0.47523313]
[1738342005804,0.0001219,105010.0,105000.0,0.48223313]
[1738342009141,0.0001219,105010.0,105000.0,0.47523313]
[1738342009502,0.0001219,105010.0,105000.0,0.47923313]
[1738342010731,0.0001219,105010.0,105000.0,0.47523313]
[1738342011162,0.0001219,105010.0,105000.0,0.47923313]
[1738342011366,0.0001219,105010.0,105000.0,0.55253313]
[1738342011524,0.0001219,105010.0,105000.0,0.55453313]
[1738342012121,0.0001219,105010.0,105000.0,0.55253313]
[1738342012318,0.0001219,105010.0,105000.0,0.55453313]
[1738342014222,9e-07,105010.0,105000.0,0.61373313]
[1738342015015,0.0001219,105030.0,105020.0,0.436529]
[1738342015220,0.0001219,105030.0,105020.0,0.58647829]
[1738342016557,0.0001219,105030.0,105020.0,0.58747829]
[1738342020329,0.0001219,105030.0,105020.0,0.50707829]
[1738342021101,0.0001219,105030.0,105020.0,0.45877829]
[1738342021550,0.0001219,105030.0,105020.0,0.46833306]
[1738342021966,0.0001219,105030.0,105020.0,0.43862693]
[1738342022187,0.0001219,105030.0,105020.0,0.46823331]
[1738342023967,0.0001219,105030.0,105020.0,0.51403331]
[1738342024812,0.0001219,105030.0,105020.0,0.46823331]
[1738342029169,0.1251219,105030.0,105020.0,0.35599015]
[1738342029362,0.6719219,105030.0,105020.0,0.31838377]
[1738342030224,0.6719219,105030.0,105020.0,0.31738377]
[1738342032793,0.5469219,105030.0,105020.0,0.46725801]
[1738342032994,0.5469219,105030.0,105020.0,0.46825801]
[1738342033157,0.0001219,105030.0,105020.0,0.46825801]
[1738342035757,0.0011219,105030.0,105020.0,0.46825801]
[1738342036195,0.0001219,105030.0,105020.0,0.46825801]
[1738342037788,0.0001219,105030.0,105020.0,0.51805801]
[1738342038000,0.0001219,105030.0,105020.0,0.59935801]
[1738342038838,0.0001219,105030.0,105020.0,0.59835801]
[1738342039311,0.0001219,105030.0,105020.0,0.60235801]
[1738342039944,0.0001219,105030.0,105020.0,0.60335801]
[1738342040355,0.0001219,105030.0,105020.0,0.60235801]
[1738342040539,0.0001219,105030.0,105020.0,0.60335801]
[1738342040879,0.0001219,105030.0,105020.0,0.47225801]
[1738342041196,0.0001219,105030.0,105020.0,0.20201485]
[1738342041392,0.6300219,105030.0,105020.0,0.20201485]
[1738342041642,0.0832219,105030.0,105020.0,0.18701485]
[1738342041772,0.0832219,105030.0,105020.0,0.35201485]
[1738342041989,0.0832219,105030.0,105020.0,0.37401485]
[1738342042192,0.0832219,105030.0,105020.0,0.32938377]
[1738342042412,0.0832219,105030.0,105020.0,0.35504462]
[1738342042827,0.0832219,105030.0,105020.0,0.35604462]
[1738342043878,0.0832219,105030.0,105020.0,0.20604462]
[1738342044089,0.0832219,105030.0,105020.0,0.22104462]
[1738342045231,0.6300219,105030.0,105020.0,0.22104462]
[1738342045384,0.6300219,105030.0,105020.0,0.19138377]
[1738342045591,0.5469219,105030.0,105020.0,0.46925834]
[1738342045802,0.5469219,105030.0,105020.0,0.46830624]
[1738342046003,0.0001219,105030.0,105020.0,0.46830624]
[1738342046591,0.0001219,105030.0,105020.0,0.46730624]
[1738342046798,0.0001219,105030.0,105020.0,0.47130624]
[1738342046983,0.0001219,105030.0,105020.0,0.47230624]
[1738342047183,0.0001219,105030.0,105020.0,0.46830624]
[1738342047420,0.0001219,105030.0,105020.0,0.47230624]
[1738342048224,0.0001219,105030.0,105020.0,0.47130624]
[1738342048624,0.0001219,105030.0,105020.0,0.55040624]
[1738342049278,0.0001219,105030.0,105020.0,0.47230624]
[1738342050035,0.0001219,105030.0,105020.0,0.49124801]
[1738342051544,9e-07,105030.0,105020.0,0.57064801]
[1738342054155,9e-07,105030.0,105020.0,0.58064801]
[1738342054329,9e-07,105030.0,105020.0,0.62744801]
[1738342054745,9e-07,105030.0,105020.0,2.12744801]
[1738342055381,9e-07,105030.0,105020.0,2.11744801]
[1738342055933,9e-07,105030.0,105020.0,0.61744801]
[1738342057355,9e-07,105030.0,105020.0,0.70249066]
[1738342057753,9e-07,105030.0,105020.0,0.68749066]
[1738342057992,9e-07,105030.0,105020.0,0.58297066]
[1738342058200,9e-07,105030.0,105020.0,0.57629066]
[1738342059454,9e-07,105030.0,105020.0,0.55734889]
[1738342060525,9e-07,105030.0,105020.0,0.47230624]
[1738342063428,0.0805009,105030.0,105020.0,0.47230624]
[1738342063626,0.0805009,105030.0,105020.0,0.20206308]
[1738342063802,0.1268009,105030.0,105020.0,0.20206308]
[1738342064223,0.1268009,105030.0,105020.0,0.37506308]
[1738342064743,0.1268009,105030.0,105020.0,0.37406308]
[1738342065289,0.1268009,105030.0,105020.0,0.37431907]
[1738342065823,0.1268009,105030.0,105020.0,0.37031907]
[1738342066266,0.1268009,105030.0,105020.0,0.37131907]
[1738342068402,0.1268009,105030.0,105020.0,0.34163976]
[1738342068831,0.6736009,105030.0,105020.0,0.37130537]
[1738342069441,0.6736009,105030.0,105020.0,0.34163976]
[1738342072285,0.6736009,105030.0,105020.0,0.32663976]
[1738342072559,0.6736009,105030.0,105020.0,0.34163976]
[1738342072764,0.6736009,105030.0,105020.0,0.32663976]
[1738342073148,0.6736009,105030.0,105020.0,0.34163976]
[1738342073580,0.6736009,105030.0,105020.0,0.32663976]
[1738342074260,0.6736009,105030.0,105020.0,0.34163976]
[1738342074891,0.1268009,105030.0,105020.0,0.32663976]
[1738342075651,0.1268009,105030.0,105020.0,0.34163976]
[1738342075846,0.1268009,105030.0,105020.0,0.32663976]
[1738342076054,0.1268009,105030.0,105020.0,0.34163976]
[1738342076216,0.1268009,105030.0,105020.0,0.32663976]
[1738342077865,0.1268009,105030.0,105020.0,0.34163976]
[1738342080965,9e-07,105030.0,105020.0,0.46852912]
[1738342082333,9e-07,105030.0,105020.0,0.37128596]
[1738342082535,9e-07,105030.0,105020.0,0.34163976]
[1738342082975,9e-07,105030.0,105020.0,0.37128863]
[1738342085433,9e-07,105030.0,105020.0,0.46853179]
[1738342085636,9e-07,105030.0,105020.0,0.54943179]
[1738342090471,9e-07,105030.0,105020.0,0.56855862]
[1738342093643,9e-07,105030.0,105020.0,0.57774107]
[1738342093997,9e-07,105030.0,105020.0,0.58474107]
[1738342095085,9e-07,105030.0,105020.0,0.50384107]
[1738342097871,9e-07,105030.0,105020.0,0.57914107]
[1738342104240,9e-07,105030.0,105020.0,0.58914107]
[1738342104448,9e-07,105030.0,105020.0,0.63654107]
[1738342107479,9e-07,105030.0,105020.0,0.61154107]
[1738342107679,0.0803219,105050.0,105040.0,0.142802]
[1738342107925,0.0803219,105050.0,105040.0,0.29364591]
[1738342108246,0.0803219,105050.0,105040.0,0.29269403]
[1738342108789,0.0803219,105050.0,105040.0,0.30769403]
[1738342108996,0.0803219,105050.0,105040.0,0.29269403]
[1738342109607,0.0803219,105050.0,105040.0,0.30769403]
[1738342110821,0.0803219,105050.0,105040.0,0.30869403]
[1738342111825,0.0803219,105050.0,105040.0,0.21145087]
[1738342112069,0.1269219,105050.0,105040.0,0.21145087]
[1738342112325,0.1269219,105050.0,105040.0,0.36145087]
[1738342113103,0.27051248,105050.0,105040.0,0.001]
[1738342113320,0.2697109,105050.0,105040.0,0.143802]
[1738342113524,0.2697109,105050.0,105040.0,0.166802]
[1738342113935,0.2697109,105050.0,105040.0,0.024]
[1738342117563,0.36695406,105050.0,105040.0,0.001]
[1738342117990,0.22416506,105050.0,105030.0,0.142805]
[1738342118195,0.268002,105040.0,105030.0,0.165805]
[1738342121237,0.269002,105040.0,105030.0,0.165805]
[1738342121817,0.269002,105040.0,105030.0,0.16606099]
[1738342122197,0.1262,105040.0,105030.0,0.16606099]
[1738342122357,0.269002,105040.0,105030.0,0.16606099]
[1738342126316,0.1262,105040.0,105030.0,0.16606099]
[1738342126520,0.269002,105040.0,105030.0,0.16606099]
[1738342127545,0.1262,105040.0,105030.0,0.16606099]
[1738342127956,0.269002,105040.0,105030.0,0.16606099]
[1738342130315,0.1262,105040.0,105030.0,0.16606099]
[1738342132779,0.001,105040.0,105030.0,0.16606099]
[1738342132985,0.001,105040.0,105030.0,0.33201298]
[1738342133196,0.001,105040.0,105030.0,0.33106099]
[1738342133606,0.001,105040.0,105030.0,0.33206099]
[1738342134287,0.0827219,105050.0,105040.0,0.165802]
[1738342136043,0.0837219,105050.0,105040.0,0.165802]
[1738342137574,0.0837219,105050.0,105040.0,0.166802]
[1738342137781,0.0837219,105050.0,105040.0,0.165802]
[1738342139365,0.2265109,105050.0,105040.0,0.166802]
[1738342139544,0.2717109,105050.0,105040.0,0.166802]
[1738342139784,0.36795406,105050.0,105040.0,0.166802]
[1738342140170,0.36795406,105050.0,105040.0,0.001]
[1738342140591,0.224402,105040.0,105030.0,0.19067699]
[1738342140828,0.224402,105040.0,105030.0,0.21367699]
[1738342141232,0.0816,105040.0,105030.0,0.21367699]
[1738342142261,0.27051248,105050.0,105040.0,0.165802]
[1738342142471,0.1269219,105050.0,105040.0,0.165802]
[1738342143385,0.1289219,105050.0,105040.0,0.165802]
[1738342143771,0.1269219,105050.0,105040.0,0.165802]
[1738342144188,0.1279219,105050.0,105040.0,0.165802]
[1738342144853,0.2707109,105050.0,105040.0,0.165802]
[1738342145294,0.1279219,105050.0,105040.0,0.165802]
[1738342146892,0.1279219,105050.0,105040.0,0.17557341]
[1738342150676,0.2707109,105050.0,105040.0,0.165802]
[1738342150879,0.2707109,105050.0,105030.0,0.52388299]
[1738342150880,0.66713906,105050.0,105030.0,0.52388299]
[1738342151140,0.17584474,105040.0,105030.0,0.17277261]
[1738342151344,0.31864674,105040.0,105030.0,0.14306499]
[1738342151519,0.31784516,105040.0,105030.0,0.14306499]
[1738342153320,0.31784516,105040.0,105030.0,0.00025599]
[1738342153935,0.31784516,105040.0,105030.0,0.00125599]
[1738342154500,0.31784516,105040.0,105030.0,0.00025599]
[1738342154673,0.31784516,105040.0,105030.0,0.00125599]
[1738342155502,0.31784516,105040.0,105030.0,0.14307199]
[1738342155919,0.31884516,105040.0,105030.0,0.14307199]
[1738342156532,0.17604316,105040.0,105030.0,0.14307199]
[1738342158175,0.31884516,105040.0,105030.0,0.14307199]
[1738342158381,0.0788,105040.0,105030.0,0.16607199]
[1738342158738,0.001,105040.0,105030.0,0.16607199]
[1738342168628,0.001,105040.0,105030.0,0.31607199]
[1738342168844,0.001,105040.0,105030.0,0.53522761]
[1738342169061,0.001,105040.0,105030.0,0.6439098]
[1738342169265,0.001,105040.0,105030.0,0.58512761]
[1738342170246,0.0011219,105040.0,105030.0,0.58512761]
[1738342170612,0.0001219,105040.0,105030.0,0.58512761]
[1738342171762,0.0001219,105040.0,105030.0,0.58612761]
[1738342172815,0.0001219,105040.0,105030.0,0.67217026]
[1738342173239,0.0001219,105040.0,105030.0,0.67117026]
[1738342173428,0.0001219,105040.0,105030.0,0.67517026]
[1738342175631,0.0001219,105040.0,105030.0,0.69466452]
[1738342177602,0.0001219,105040.0,105030.0,0.71244385]
[1738342180386,0.0001219,105040.0,105030.0,0.6274012]
[1738342183719,0.0001219,105040.0,105030.0,0.63229009]
[1738342185086,0.0001219,105050.0,105040.0,0.330802]
[1738342185296,0.0001219,105050.0,105040.0,0.42804516]
[1738342185510,9e-07,105050.0,105040.0,0.58085762]
[1738342185718,0.5468,105070.0,105060.0,0.180775]
[1738342185928,0.5468,105070.0,105060.0,0.27896986]
[1738342186123,0.5468,105070.0,105060.0,0.30773062]
[1738342188002,0.5468,105070.0,105060.0,0.30973062]
[1738342188180,0.5468,105070.0,105060.0,0.32750995]
[1738342189001,0.54671242,105070.0,105060.0,0.32750995]
[1738342189544,0.1286219,105090.0,105060.0,0.47750995]
[1738342189741,0.62863432,105090.0,105080.0,0.307748]
[1738342190650,0.62863432,105090.0,105080.0,0.330748]
[1738342190854,0.62863432,105090.0,105080.0,0.34852733]
[1738342191032,0.62863432,105090.0,105080.0,0.33352733]
[1738342191242,0.62863432,105090.0,105080.0,0.34852733]
[1738342191449,0.62863432,105090.0,105080.0,0.34952733]
[1738342194079,0.62863432,105090.0,105080.0,0.45652085]
[1738342194080,0.54683432,105090.0,105080.0,0.45652085]
[1738342195204,0.0001219,105090.0,105080.0,0.45652085]
[1738342195975,0.0001219,105090.0,105080.0,0.48491053]
[1738342196176,0.0001219,105090.0,105080.0,0.48391053]
[1738342196376,0.0001219,105090.0,105080.0,0.48791053]
[1738342196640,0.0001219,105090.0,105080.0,0.48891053]
[1738342196787,0.0001219,105090.0,105080.0,0.39166737]
[1738342199556,0.54683432,105090.0,105080.0,0.39166737]
[1738342200559,0.54683432,105090.0,105080.0,0.36327769]
[1738342202828,0.62803432,105090.0,105080.0,0.34827769]
[1738342203717,0.62803432,105090.0,105080.0,0.34727769]
[1738342203951,0.67733432,105090.0,105080.0,0.34727769]
[1738342204152,0.67733432,105090.0,105080.0,0.32949836]
[1738342205548,0.1306219,105090.0,105080.0,0.32949836]
[1738342205752,0.13142348,105090.0,105080.0,0.32949836]
[1738342205972,0.37140064,105090.0,105080.0,0.01375036]
[1738342206340,0.37059906,105090.0,105080.0,0.004]
[1738342207531,0.37159906,105090.0,105080.0,0.004]
[1738342207733,0.22886506,105090.0,105060.0,0.53311664]
[1738342207934,0.56273774,105080.0,105060.0,0.53311664]
[1738342208151,0.75307474,105080.0,105060.0,0.53311664]
[1738342208355,0.75307474,105080.0,105060.0,0.54811664]
[1738342208693,0.75307474,105080.0,105050.0,0.00025599]
[1738342208694,0.224172,105070.0,105050.0,0.00025599]
[1738342208902,0.36921974,105060.0,105050.0,0.00025599]
[1738342209147,0.36841816,105060.0,105050.0,0.00025599]
[1738342209718,0.36841816,105060.0,105050.0,0.14304499]
[1738342210407,0.36841816,105060.0,105050.0,0.00425599]
[1738342210660,0.37841816,105060.0,105050.0,0.00425599]
[1738342210850,0.37841816,105060.0,105050.0,0.00525599]
[1738342211726,0.37841816,105060.0,105050.0,0.00425599]
[1738342214718,0.37841816,105060.0,105050.0,0.00025599]
[1738342214917,0.37841816,105060.0,105050.0,0.00125599]